[Event "FIDE World Rapid-ch Open 2018"]
[White "Rakhmanov, Aleksandr"]
[Black "Kobo, Ori"]
[Site "St. Petersburg"]
[Round "5.55"]
[Annotator "RC"]
[Result "1-0"]
[Date "2018.12.26"]
[WhiteElo "2629"]
[BlackElo "2494"]
[PlyCount "143"]
[TimeControl "900+10"]

1. c4 {[%emt 0:0:0]} e5 {[%emt 0:0:0]} 2. Nf3 {[%emt 0:0:0]} e4 {[%emt 0:0:0]} 3. Nd4 {[%emt 0:0:0]} Nc6 {[%emt 0:0:0]} 4. Nxc6 {[%emt 0:0:0]} dxc6 {[%emt 0:0:0]} 5. Nc3 {[%emt 0:0:0]} Nf6 {[%emt 0:0:5]} 6. e3 {[%emt 0:0:2]
} Be7 {[%emt 0:1:17]} 7. h3 {[%emt 0:0:8]} h5 {[%emt 0:0:11]} 8. Qc2 {[%emt 0:0:18]} Bf5 {[%emt 0:0:2]} 9. Qb3 {[%emt 0:1:21]} b6 {[%emt 0:0:2]
} 10. Qc2 {[%emt 0:0:3]} Qd7 {[%emt 0:0:10]} 11. b3 {[%emt 0:0:0]} h4 {[%emt 0:0:36]} 12. Bb2 {[%emt 0:0:2]} 0-0-0 {[%emt 0:0:2]} 13. a3 {[%emt 0:0:2]} Kb8 {[%emt 0:0:49]} 14. b4 {[%emt 0:0:1]} c5 {[%emt 0:0:0]} 15. bxc5 {[%emt 0:0:9]} Bxc5 {[%emt 0:0:2]} 16. Na4 {[%emt 0:0:3]
} Qc6 {[%emt 0:0:35]} 17. Nxc5 {[%emt 0:0:4]} Qxc5 {[%emt 0:0:1]} 18. a4 {[%emt 0:0:12]
} Nd5 {[%emt 0:1:54]} 19. Ba3 {[%emt 0:5:12]} Nb4 {[%emt 0:0:0]} 20. Qc3 {[%emt 0:0:16]} a5 {[%emt 0:0:8]} 21. Rb1 {[%emt 0:0:38]} Rh6 {[%emt 0:1:37]} 22. Bxb4 {[%emt 0:1:25]} axb4 {[%emt 0:0:1]} 23. Qxb4 {[%emt 0:1:51]
} Qxb4 {[%emt 0:0:47]} 24. Rxb4 {[%emt 0:0:2]} Rhd6 {[%emt 0:0:0]} 25. Rb2 {[%emt 0:0:1]} Kb7 {[%emt 0:0:11]} 26. g4 {[%emt 0:0:38]} hxg3 {[%emt 0:0:25]} 27. fxg3 {[%emt 0:0:1]} Ra8 {[%emt 0:0:22]} 28. g4 {[%emt 0:1:46]
} Bd7 {[%emt 0:1:4]} 29. c5 {[%emt 0:0:51]} Rd5 {[%emt 0:0:0]} 30. d4 {[%emt 0:1:58]} exd3 {[%emt 0:2:2]} 31. Bg2 {[%emt 0:0:10]} Bc6 {[%emt 0:0:1]} 32. Bxd5 {[%emt 0:0:24]} Bxd5 {[%emt 0:0:1]} 33. Rf1 {[%emt 0:1:8]
} Rxa4 {[%emt 0:0:6]} 34. Kd2 {[%emt 0:0:7]} Bc4 {[%emt 0:0:0]} 35. cxb6 {[%emt 0:0:19]} cxb6 {[%emt 0:0:9]} 36. h4 {[%emt 0:0:48]} Kc6 {[%emt 0:1:21]} 37. h5 {[%emt 0:0:17]} Be6 {[%emt 0:0:53]} 38. g5 {[%emt 0:0:12]
} Rg4 {[%emt 0:0:31]} 39. Rc1+ {[%emt 0:0:7]} Kb7 {[%emt 0:0:0]} 40. Rcb1 {[%emt 0:0:34]} Rxg5 {[%emt 0:0:27]} 41. Rxb6+ {[%emt 0:0:2]} Kc7 {[%emt 0:0:0]} 42. R6b5 {[%emt 0:0:20]} Rg4 {[%emt 0:0:32]} 43. R1b4 {[%emt 0:0:12]
} Rg2+ {[%emt 0:0:12]} 44. Kxd3 {[%emt 0:0:1]} Kd6 {[%emt 0:0:0]} 45. Ra5 {[%emt 0:0:26]} Ke7 {[%emt 0:0:10]} 46. Rf4 {[%emt 0:0:3]} Rh2 {[%emt 0:0:8]} 47. Ra7+ {[%emt 0:0:5]} Kd6 {[%emt 0:0:3]} 48. Rfa4 {[%emt 0:0:17]
} Bf5+ {[%emt 0:0:11]} 49. e4 {[%emt 0:0:10]} Be6 {[%emt 0:0:0]} 50. R4a5 {[%emt 0:0:14]} Rh1 {[%emt 0:0:11]} 51. Rg5 {[%emt 0:0:13]} Rh2 {[%emt 0:0:17]} 52. Raa5 {[%emt 0:0:3]} Ke7 {[%emt 0:0:18]} 53. Rxg7 {[%emt 0:0:5]
} Kf6 {[%emt 0:0:3]} 54. Rg3 {[%emt 0:0:14]} Rh1 {[%emt 0:0:0]} 55. Rag5 {[%emt 0:0:20]} Rd1+ {[%emt 0:0:9]} 56. Ke2 {[%emt 0:0:3]} Rh1 {[%emt 0:0:6]} 57. Kf2 {[%emt 0:0:2]} Rh4 {[%emt 0:0:7]} 58. Ke3 {[%emt 0:0:22]
} Rh1 {[%emt 0:0:7]} 59. Ra5 {[%emt 0:0:2]} Rh4 {[%emt 0:0:0]} 60. Kf3 {[%emt 0:0:12]} Rh1 {[%emt 0:0:8]} 61. Rag5 {[%emt 0:0:12]} Rh4 {[%emt 0:0:4]} 62. Ke3 {[%emt 0:0:15]} Rh1 {[%emt 0:0:4]} 63. Rc5 {[%emt 0:0:2]
} Rh4 {[%emt 0:0:14]} 64. Kd4 {[%emt 0:0:7]} Rh1 {[%emt 0:0:0]} 65. Rf3+ {[%emt 0:0:11]} Kg7 {[%emt 0:0:11]} 66. Rg5+ {[%emt 0:0:2]} Kh6 {[%emt 0:0:33]} 67. Rg8 {[%emt 0:0:5]} Kh7 {[%emt 0:0:4]} 68. Rg5 {[%emt 0:0:19]
} Kh6 {[%emt 0:0:2]} 69. Rfg3 {[%emt 0:0:2]} Rh4 {[%emt 0:0:0]} 70. Ke5 {[%emt 0:0:10]} Rh1 {[%emt 0:0:3]} 71. Rg8 {[%emt 0:0:10]} Rxh5+ {[%emt 0:0:14]} 72. Kf6 {[%emt 0:0:2]} 1-0

[Event "FIDE World Rapid-ch Open 2018"]
[White "Petrov, Nikita"]
[Black "Shaposhnikov, Evgeny"]
[Site "St. Petersburg"]
[Round "5.56"]
[Annotator "ChessBase"]
[Result "1/2-1/2"]
[Date "2018.12.26"]
[WhiteElo "2593"]
[BlackElo "2576"]
[PlyCount "115"]
[TimeControl "900+10"]

1. e4 {[%emt 0:0:0]} e6 {[%emt 0:0:0]} 2. d4 {[%emt 0:0:8]} d5 {[%emt 0:0:0]} 3. Nd2 {[%emt 0:0:0]} Nc6 {[%emt 0:0:0]} 4. Ngf3 {[%emt 0:0:0]} Nf6 {[%emt 0:0:0]} 5. e5 {[%emt 0:0:4]} Nd7 {[%emt 0:0:2]} 6. Bd3 {[%emt 0:0:3]
} f6 {[%emt 0:0:14]} 7. Ng5 {[%emt 0:0:16]} Ndxe5 {[%emt 0:0:0]} 8. dxe5 {[%emt 0:0:2]} fxg5 {[%emt 0:0:2]} 9. Qh5+ {[%emt 0:0:2]} g6 {[%emt 0:0:14]} 10. Bxg6+ {[%emt 0:0:1]} Kd7 {[%emt 0:0:2]} 11. c4 {[%emt 0:0:42]
} Nxe5 {[%emt 0:0:43]} 12. Bc2 {[%emt 0:0:1]} c6 {[%emt 0:0:0]} 13. f4 {[%emt 0:0:57]} Nxc4 {[%emt 0:1:0]} 14. Nxc4 {[%emt 0:0:2]} dxc4 {[%emt 0:0:1]} 15. Bd2 {[%emt 0:1:29]} Kc7 {[%emt 0:2:26]} 16. 0-0-0 {[%emt 0:0:47]
} Qe7 {[%emt 0:0:38]} 17. fxg5 {[%emt 0:1:18]} e5 {[%emt 0:0:0]} 18. g6 {[%emt 0:2:24]} Bg7 {[%emt 0:0:13]} 19. gxh7 {[%emt 0:0:4]} Be6 {[%emt 0:0:49]} 20. Bg5 {[%emt 0:2:40]} Qf7 {[%emt 0:1:13]} 21. Qxf7+ {[%emt 0:0:21]
} Bxf7 {[%emt 0:0:1]} 22. Rhf1 {[%emt 0:0:28]} Be6 {[%emt 0:0:0]} 23. Rf6 {[%emt 0:3:13]} Bd5 {[%emt 0:1:17]} 24. Rxd5 {[%emt 0:1:28]} Bxf6 {[%emt 0:0:3]} 25. Bxf6 {[%emt 0:0:1]} cxd5 {[%emt 0:0:1]} 26. Bxe5+ {[%emt 0:0:1]} Kc6 {[%emt 0:0:16]} 27. g4 {[%emt 0:0:32]} Rhe8 {[%emt 0:0:0]} 28. Bd4 {[%emt 0:1:3]} Re1+ {[%emt 0:0:18]} 29. Bd1 {[%emt 0:0:27]} Rh1 {[%emt 0:0:8]} 30. h8=Q {[%emt 0:1:7]} Rxh8 {[%emt 0:0:2]} 31. Bxh8 {[%emt 0:0:1]
} Rxh2 {[%emt 0:0:3]} 32. Bd4 {[%emt 0:0:15]} a5 {[%emt 0:0:0]} 33. a4 {[%emt 0:0:13]} Rg2 {[%emt 0:0:7]} 34. Bf3 {[%emt 0:0:7]} Rg3 {[%emt 0:0:9]} 35. Be2 {[%emt 0:0:1]} b5 {[%emt 0:0:5]} 36. axb5+ {[%emt 0:0:4]
} Kxb5 {[%emt 0:0:1]} 37. Kd2 {[%emt 0:0:7]} a4 {[%emt 0:0:0]} 38. Be5 {[%emt 0:0:12]} a3 {[%emt 0:0:34]} 39. bxa3 {[%emt 0:0:26]} Rxa3 {[%emt 0:0:3]} 40. g5 {[%emt 0:0:3]} Ra6 {[%emt 0:1:14]} 41. Bh5 {[%emt 0:0:13]
} Ra2+ {[%emt 0:0:5]} 42. Ke3 {[%emt 0:0:12]} Rg2 {[%emt 0:0:0]} 43. g6 {[%emt 0:0:2]} Kb4 {[%emt 0:0:15]} 44. g7 {[%emt 0:0:21]} c3 {[%emt 0:0:33]
} 45. Bd1 {[%emt 0:0:12]} Kc4 {[%emt 0:0:11]} 46. Bc2 {[%emt 0:0:0]} Rg5 {[%emt 0:0:26]} 47. Kf4 {[%emt 0:0:12]} Rg2 {[%emt 0:0:5]} 48. Ke3 {[%emt 0:0:1]} Rg5 {[%emt 0:0:1]} 49. Bf6 {[%emt 0:0:14]} Rg2 {[%emt 0:0:27]
} 50. Bh7 {[%emt 0:0:2]} Rg3+ {[%emt 0:0:50]} 51. Kf4 {[%emt 0:0:7]
} Rxg7 {[%emt 0:0:8]} 52. Bxg7 {[%emt 0:0:4]} d4 {[%emt 0:0:0]} 53. Ke4 {[%emt 0:0:11]} c2 {[%emt 0:0:10]} 54. Bh6 {[%emt 0:0:2]} Kc3 {[%emt 0:0:7]} 55. Bc1 {[%emt 0:0:14]} d3 {[%emt 0:0:1]} 56. Ke3 {[%emt 0:0:0]} d2 {[%emt 0:0:1]} 57. Bxd2+ {[%emt 0:0:1]} Kb2 {[%emt 0:0:2]} 58. Ke4 1/2-1/2

[Event "FIDE World Rapid-ch Open 2018"]
[White "Lintchevski, Daniil"]
[Black "Maghsoodloo, Parham"]
[Site "St. Petersburg"]
[Round "5.57"]
[Annotator "RC"]
[Result "0-1"]
[Date "2018.12.26"]
[WhiteElo "2516"]
[BlackElo "2688"]
[PlyCount "138"]
[TimeControl "900+10"]

1. e4 {[%emt 0:0:0]} Nc6 {[%emt 0:0:0]} 2. Nc3 {[%emt 0:0:6]} e5 {[%emt 0:0:6]
} 3. Nf3 {[%emt 0:0:6]} Nf6 {[%emt 0:0:3]} 4. d4 {[%emt 0:0:0]} exd4 {[%emt 0:0:3]} 5. Nxd4 {[%emt 0:0:2]} Bb4 {[%emt 0:0:7]} 6. Nxc6 {[%emt 0:0:5]} bxc6 {[%emt 0:0:2]} 7. Bd3 {[%emt 0:0:2]} d5 {[%emt 0:0:13]
} 8. exd5 {[%emt 0:0:3]} 0-0 {[%emt 0:0:3]} 9. 0-0 {[%emt 0:0:0]} cxd5 {[%emt 0:0:3]} 10. Bg5 {[%emt 0:0:45]} c6 {[%emt 0:0:6]} 11. Qf3 {[%emt 0:0:3]} Re8 {[%emt 0:1:22]} 12. Rfe1 {[%emt 0:2:17]} Rxe1+ {[%emt 0:0:19]
} 13. Rxe1 {[%emt 0:0:3]} Be6 {[%emt 0:0:1]} 14. a3 {[%emt 0:0:0]} Be7 {[%emt 0:1:15]} 15. Ne2 {[%emt 0:0:25]} h6 {[%emt 0:0:8]} 16. Bh4 {[%emt 0:1:8]} g5 {[%emt 0:4:19]} 17. Bg3 {[%emt 0:0:12]} c5 {[%emt 0:0:0]} 18. Nc3 {[%emt 0:2:22]} Bg4 {[%emt 0:1:12]} 19. Qe3 {[%emt 0:0:12]} Bd6 {[%emt 0:3:50]} 20. Bxd6 {[%emt 0:5:41]} Qxd6 {[%emt 0:0:1]} 21. Qd2 {[%emt 0:0:8]
} Kg7 {[%emt 0:0:28]} 22. b4 {[%emt 0:0:46]} Rc8 {[%emt 0:0:0]} 23. Nb5 {[%emt 0:0:20]} Qb6 {[%emt 0:0:3]} 24. bxc5 {[%emt 0:0:7]} Qxc5 {[%emt 0:0:1]} 25. Qb4 {[%emt 0:0:12]} Bd7 {[%emt 0:1:3]} 26. Nd4 {[%emt 0:0:19]
} Qc3 {[%emt 0:0:59]} 27. f3 {[%emt 0:0:40]} a5 {[%emt 0:0:5]
} 28. Qxc3 {[%emt 0:0:1]} Rxc3 {[%emt 0:0:1]} 29. Ra1 {[%emt 0:0:1]} Ne8 {[%emt 0:1:29]} 30. Kf2 {[%emt 0:0:5]} Kf6 {[%emt 0:0:11]} 31. Ke3 {[%emt 0:0:18]
} Ke5 {[%emt 0:0:7]} 32. Ne2 {[%emt 0:0:3]} Rc7 {[%emt 0:0:0]} 33. Rb1 {[%emt 0:0:26]} f5 {[%emt 0:0:10]} 34. Kd2 {[%emt 0:0:9]} Nd6 {[%emt 0:0:12]} 35. c3 {[%emt 0:0:6]} f4 {[%emt 0:0:21]} 36. Nd4 {[%emt 0:0:0]} Rb7 {[%emt 0:0:1]} 37. Rxb7 {[%emt 0:1:42]} Nxb7 {[%emt 0:0:1]} 38. Bc2 {[%emt 0:0:9]} h5 {[%emt 0:0:48]} 39. h3 {[%emt 0:0:2]} Nc5 {[%emt 0:0:13]
} 40. Bg6 {[%emt 0:0:16]} h4 {[%emt 0:0:0]} 41. Bc2 {[%emt 0:0:0]} Kd6 {[%emt 0:0:7]} 42. Bd1 {[%emt 0:0:11]} Ke5 {[%emt 0:0:38]} 43. Bc2 {[%emt 0:0:1]} Nb7 {[%emt 0:0:3]} 44. Bd3 {[%emt 0:0:20]} Kd6 {[%emt 0:0:1]
} 45. Nb3 {[%emt 0:0:11]} Ba4 {[%emt 0:0:1]} 46. Nd4 {[%emt 0:0:0]} Nc5 {[%emt 0:0:6]} 47. Bb1 {[%emt 0:0:27]} Nd7 {[%emt 0:0:11]} 48. Bd3 {[%emt 0:0:7]} Ne5 {[%emt 0:0:2]} 49. Be2 {[%emt 0:0:13]} Bd7 {[%emt 0:0:1]
} 50. Nb3 {[%emt 0:0:14]} a4 {[%emt 0:0:22]} 51. Nd4 {[%emt 0:0:0]} Kc5 {[%emt 0:0:1]} 52. Kc1 {[%emt 0:0:41]} Kb6 {[%emt 0:0:8]} 53. Kd2 {[%emt 0:0:6]} Bc8 {[%emt 0:0:2]} 54. Kc1 {[%emt 0:0:18]} Ba6 {[%emt 0:1:10]
} 55. Bxa6 {[%emt 0:0:5]} Kxa6 56. Ne6 {[%emt 0:0:1]} Nc4 {[%emt 0:0:22]
} 57. Nxg5 {[%emt 0:0:2]} Nxa3 {[%emt 0:0:1]} 58. Ne6 {[%emt 0:0:1]
} Kb5 {[%emt 0:0:0]} 59. Kb2 {[%emt 0:0:30]} Nc4+ {[%emt 0:0:0]} 60. Ka2 {[%emt 0:0:2]} Ne3 {[%emt 0:0:9]} 61. Nxf4 {[%emt 0:0:1]} Kc4 {[%emt 0:0:1]} 62. Ka3 {[%emt 0:0:26]} Kxc3 {[%emt 0:0:10]} 63. Kxa4 {[%emt 0:0:2]
} d4 {[%emt 0:0:1]} 64. Ne2+ {[%emt 0:0:12]} Kc4 {[%emt 0:0:0]} 65. Nc1 {[%emt 0:0:12]} d3 {[%emt 0:0:30]} 66. Nb3 {[%emt 0:0:1]} Kc3 {[%emt 0:0:1]} 67. f4 {[%emt 0:0:2]} d2 {[%emt 0:0:1]} 68. Nxd2 {[%emt 0:0:0]} Kxd2 {[%emt 0:0:0]} 69. Kb4 {[%emt 0:0:5]} Kd3 {[%emt 0:0:1]} 0-1

[Event "FIDE World Rapid-ch Open 2018"]
[White "Tissir, Mohamed"]
[Black "Smirin, Ilia"]
[Site "St. Petersburg"]
[Round "5.58"]
[Annotator "RC"]
[Result "1/2-1/2"]
[Date "2018.12.26"]
[WhiteElo "2387"]
[BlackElo "2609"]
[PlyCount "150"]
[TimeControl "900+10"]

1. e4 {[%emt 0:0:0]} c5 {[%emt 0:0:0]} 2. Nc3 {[%emt 0:0:0]} e6 {[%emt 0:0:0]} 3. Nf3 {[%emt 0:0:0]} a6 {[%emt 0:0:3]} 4. d4 {[%emt 0:0:3]} cxd4 {[%emt 0:0:2]} 5. Nxd4 {[%emt 0:0:2]} Qc7 {[%emt 0:0:9]} 6. f4 {[%emt 0:0:0]} Bb4 {[%emt 0:0:29]} 7. Qf3 {[%emt 0:0:6]} Nc6 {[%emt 0:0:16]} 8. Nb3 {[%emt 0:0:3]} Be7 {[%emt 0:1:16]} 9. Bd3 {[%emt 0:0:10]} b5 {[%emt 0:0:0]} 10. 0-0 {[%emt 0:0:2]} Bb7 {[%emt 0:0:7]} 11. Bd2 {[%emt 0:0:10]} Nf6 {[%emt 0:0:18]} 12. Rae1 {[%emt 0:0:2]} d6 {[%emt 0:0:42]} 13. Kh1 {[%emt 0:0:45]
} h5 {[%emt 0:0:10]} 14. Be3 {[%emt 0:0:18]} h4 {[%emt 0:0:11]
} 15. h3 {[%emt 0:3:12]} Nh5 {[%emt 0:0:20]} 16. Bf2 {[%emt 0:0:1]} g5 {[%emt 0:1:14]
} 17. Nd5 {[%emt 0:2:32]} exd5 {[%emt 0:0:18]} 18. exd5 {[%emt 0:0:1]
} Nb4 {[%emt 0:1:52]} 19. fxg5 {[%emt 0:0:7]} Nxd5 {[%emt 0:0:0]} 20. Be4 {[%emt 0:4:22]} Nhf4 {[%emt 0:0:1]} 21. Be3 {[%emt 0:0:38]} Nxe3 {[%emt 0:0:26]} 22. Bxb7 {[%emt 0:0:58]} Nxf1 {[%emt 0:0:7]} 23. Rxf1 {[%emt 0:0:7]} Ra7 {[%emt 0:0:50]} 24. Bc6+ {[%emt 0:1:13]} Kf8 {[%emt 0:0:0]} 25. Qxf4 {[%emt 0:0:2]} Bxg5 {[%emt 0:0:2]} 26. Qxg5 {[%emt 0:0:0]} Qxc6 {[%emt 0:0:2]} 27. Nd4 {[%emt 0:1:2]} Qe4 {[%emt 0:0:2]} 28. Nf5 {[%emt 0:0:5]} Rh7 {[%emt 0:2:8]} 29. Qd8+ {[%emt 0:0:28]} Qe8 {[%emt 0:0:1]
} 30. Qxd6+ {[%emt 0:0:1]} Kg8 {[%emt 0:0:1]} 31. Rf4 {[%emt 0:0:4]
} Rg7 {[%emt 0:0:43]} 32. Qd4 {[%emt 0:1:55]} Qe1+ {[%emt 0:0:0]} 33. Kh2 {[%emt 0:0:4]} f6 {[%emt 0:0:6]} 34. Qd8+ {[%emt 0:0:20]} Kh7 {[%emt 0:0:28]} 35. Rxh4+ {[%emt 0:0:13]} Kg6 {[%emt 0:0:1]} 36. Qd3 {[%emt 0:0:9]
} Qe5+ {[%emt 0:0:9]} 37. Kh1 {[%emt 0:0:11]} Rad7 {[%emt 0:0:0]} 38. Rg4+ {[%emt 0:0:7]} Kh7 {[%emt 0:0:13]} 39. Rxg7+ {[%emt 0:0:0]} Rxg7 {[%emt 0:0:1]} 40. Nxg7+ {[%emt 0:0:2]} Kxg7 {[%emt 0:0:2]} 41. c3 {[%emt 0:0:2]} Qf4 {[%emt 0:0:3]} 42. Qe2 {[%emt 0:0:5]} Kf7 {[%emt 0:0:0]} 43. a3 {[%emt 0:0:1]} a5 {[%emt 0:0:9]} 44. Kg1 {[%emt 0:0:5]} Qc1+ {[%emt 0:0:17]} 45. Kh2 {[%emt 0:0:3]} Qf4+ {[%emt 0:0:6]} 46. g3 {[%emt 0:0:1]
} Qc1 {[%emt 0:0:5]} 47. h4 {[%emt 0:0:3]} a4 {[%emt 0:0:10]
} 48. Kh3 {[%emt 0:0:11]} Qh1+ {[%emt 0:0:15]} 49. Kg4 {[%emt 0:0:1]} Qd5 {[%emt 0:0:3]
} 50. Kf4 {[%emt 0:0:26]} Qd6+ {[%emt 0:0:11]} 51. Kf3 {[%emt 0:0:4]
} Qd5+ {[%emt 0:0:4]} 52. Kf2 {[%emt 0:0:17]} Qf5+ {[%emt 0:0:0]} 53. Kg2 {[%emt 0:0:8]} Qd5+ {[%emt 0:0:5]} 54. Kh2 {[%emt 0:0:0]} Qc5 {[%emt 0:0:7]} 55. Qg2 {[%emt 0:0:24]} Qe5 {[%emt 0:0:8]} 56. Qb7+ {[%emt 0:0:7]
} Kg6 {[%emt 0:0:7]} 57. Qf3 {[%emt 0:0:2]} Kf7 {[%emt 0:0:0]} 58. Kg2 {[%emt 0:0:13]} Qc5 {[%emt 0:0:34]} 59. Qe4 {[%emt 0:0:10]} f5 {[%emt 0:0:9]} 60. Qf3 {[%emt 0:0:19]} Kg6 {[%emt 0:0:42]} 61. g4 {[%emt 0:0:0]} fxg4 {[%emt 0:0:2]} 62. Qxg4+ {[%emt 0:0:1]} Kh6 {[%emt 0:0:26]} 63. Qg5+ {[%emt 0:0:13]} Qxg5+ {[%emt 0:0:2]} 64. hxg5+ {[%emt 0:0:1]} Kxg5 {[%emt 0:0:2]} 65. Kf3 {[%emt 0:0:1]} Kf5 {[%emt 0:0:2]} 66. Ke3 {[%emt 0:0:1]
} Ke5 {[%emt 0:0:1]} 67. Kd3 {[%emt 0:1:4]} Kd5 {[%emt 0:0:0]} 68. Kd2 {[%emt 0:0:7]} Kc4 {[%emt 0:0:36]} 69. Kc2 {[%emt 0:0:9]} Kc5 {[%emt 0:0:1]} 70. b3 {[%emt 0:0:20]} axb3+ 71. Kxb3 {[%emt 0:0:1]} Kc6 {[%emt 0:0:7]
} 72. Kb4 {[%emt 0:0:14]} Kb6 {[%emt 0:0:1]} 73. a4 {[%emt 0:0:0]} bxa4 {[%emt 0:0:4]} 74. Kxa4 {[%emt 0:0:2]} Kc5 {[%emt 0:0:2]} 75. Kb3 {[%emt 0:0:3]} Kb5 {[%emt 0:0:1]} 1/2-1/2

[Event "FIDE World Rapid-ch Open 2018"]
[White "Demidov, Mikhail"]
[Black "Van Foreest, Jorden"]
[Site "St. Petersburg"]
[Round "5.59"]
[Annotator "RC"]
[Result "1/2-1/2"]
[Date "2018.12.26"]
[WhiteElo "2520"]
[BlackElo "2614"]
[PlyCount "174"]
[TimeControl "900+10"]

1. Nf3 {[%emt 0:0:0]} d5 {[%emt 0:0:0]} 2. d4 {[%emt 0:0:0]} Nf6 {[%emt 0:0:0]
} 3. Bf4 {[%emt 0:0:0]} e6 {[%emt 0:0:20]} 4. e3 {[%emt 0:0:0]} Bd6 {[%emt 0:0:4]} 5. Bg3 {[%emt 0:0:0]} 0-0 {[%emt 0:0:16]} 6. Bd3 {[%emt 0:0:2]
} b6 {[%emt 0:0:20]} 7. Nbd2 {[%emt 0:0:14]} Bb7 {[%emt 0:0:0]} 8. Bh4 {[%emt 0:0:51]} Nbd7 {[%emt 0:0:7]} 9. 0-0 {[%emt 0:0:13]} c5 {[%emt 0:0:29]
} 10. c3 {[%emt 0:0:1]} Qb8 {[%emt 0:0:14]} 11. Qb1 {[%emt 0:0:0]} a5 {[%emt 0:0:54]} 12. Re1 {[%emt 0:1:20]} h6 {[%emt 0:0:2]} 13. a4 {[%emt 0:3:22]} Bc6 {[%emt 0:0:15]} 14. Bg3 {[%emt 0:0:43]} Bxg3 {[%emt 0:0:0]} 15. hxg3 {[%emt 0:0:2]} e5 {[%emt 0:1:24]} 16. e4 {[%emt 0:0:30]} Re8 {[%emt 0:2:14]} 17. exd5 {[%emt 0:1:11]} Bxd5 {[%emt 0:0:2]} 18. Bb5 {[%emt 0:0:52]
} exd4 {[%emt 0:1:34]} 19. cxd4 {[%emt 0:1:0]} Rxe1+ {[%emt 0:0:0]} 20. Qxe1 {[%emt 0:0:1]} Qb7 {[%emt 0:0:4]} 21. dxc5 {[%emt 0:0:35]
} Nxc5 {[%emt 0:0:3]} 22. Qe3 {[%emt 0:1:49]} Rd8 {[%emt 0:1:23]} 23. Nc4 {[%emt 0:0:48]
} Qc7 {[%emt 0:0:20]} 24. Qe5 {[%emt 0:0:36]} Qb8 {[%emt 0:0:0]} 25. Qxb8 {[%emt 0:0:48]} Rxb8 {[%emt 0:0:1]} 26. Nfe5 {[%emt 0:0:7]} Rb7 {[%emt 0:1:36]} 27. f3 {[%emt 0:0:32]} Re7 {[%emt 0:0:39]} 28. Rd1 {[%emt 0:0:51]
} Re6 {[%emt 0:0:38]} 29. f4 {[%emt 0:0:50]} h5 {[%emt 0:0:21]
} 30. Ne3 {[%emt 0:0:5]} Bb3 {[%emt 0:0:38]} 31. Rd8+ {[%emt 0:0:51]} Kh7 {[%emt 0:0:2]
} 32. Rd4 {[%emt 0:0:39]} g6 {[%emt 0:0:24]} 33. Nf1 {[%emt 0:0:0]} Kg7 {[%emt 0:1:4]} 34. Nd2 {[%emt 0:0:0]} Bc2 {[%emt 0:0:35]} 35. Ndf3 {[%emt 0:0:19]} Re7 {[%emt 0:0:32]} 36. Ng5 {[%emt 0:0:20]} Bb3 {[%emt 0:0:3]
} 37. Ngf3 {[%emt 0:0:12]} Re6 {[%emt 0:0:26]} 38. Nd2 {[%emt 0:0:10]
} Bc2 {[%emt 0:0:1]} 39. Bc4 {[%emt 0:0:8]} Re7 {[%emt 0:0:0]} 40. b3 {[%emt 0:0:1]} Ng4 {[%emt 0:0:6]} 41. Nxg4 {[%emt 0:0:20]} hxg4 {[%emt 0:0:2]} 42. Kf2 {[%emt 0:0:17]} Rc7 {[%emt 0:0:41]} 43. Rd6 {[%emt 0:0:7]
} Rd7 {[%emt 0:0:1]} 44. Rxd7 {[%emt 0:0:4]} Nxd7 {[%emt 0:0:0]} 45. Ke3 {[%emt 0:0:12]} Kf6 {[%emt 0:0:2]} 46. Ne4+ {[%emt 0:0:16]} Ke7 {[%emt 0:0:1]} 47. Kd4 {[%emt 0:0:3]} f6 {[%emt 0:0:29]} 48. Nc3 {[%emt 0:0:12]
} Kd6 {[%emt 0:0:2]} 49. Nd5 {[%emt 0:0:8]} Bf5 {[%emt 0:0:0]} 50. Ne3 {[%emt 0:0:10]} Nc5 {[%emt 0:0:2]} 51. Nxf5+ {[%emt 0:0:19]} gxf5 {[%emt 0:0:1]} 52. Bd5 {[%emt 0:0:0]} Nd3 {[%emt 0:0:11]} 53. Bb7 {[%emt 0:0:15]
} Nc1 {[%emt 0:0:10]} 54. Bc8 {[%emt 0:0:13]} Ne2+ {[%emt 0:0:0]} 55. Ke3 {[%emt 0:0:8]} Nxg3 {[%emt 0:0:2]} 56. Kf2 {[%emt 0:0:3]} Ne4+ {[%emt 0:0:1]} 57. Ke3 {[%emt 0:0:1]} Ng3 {[%emt 0:0:20]} 58. Kf2 {[%emt 0:0:0]
} Nh5 {[%emt 0:0:8]} 59. Bxf5 {[%emt 0:0:35]} Nxf4 {[%emt 0:0:0]} 60. g3 {[%emt 0:0:9]} Ne6 {[%emt 0:0:27]} 61. Bxg4 {[%emt 0:0:2]} Nc5 {[%emt 0:0:4]} 62. Bd1 {[%emt 0:0:2]} Ke5 {[%emt 0:0:2]} 63. Ke3 {[%emt 0:0:3]
} Ne4 {[%emt 0:0:3]} 64. g4 {[%emt 0:0:14]} Nc5 {[%emt 0:0:0]} 65. Bc2 {[%emt 0:0:4]} Ne6 {[%emt 0:0:6]} 66. Bd3 {[%emt 0:0:22]} Nd4 {[%emt 0:0:18]} 67. Bc4 {[%emt 0:0:8]} Nc2+ {[%emt 0:0:18]} 68. Kd3 {[%emt 0:0:15]
} Nb4+ {[%emt 0:0:2]} 69. Ke3 {[%emt 0:0:2]} Nc6 {[%emt 0:0:0]} 70. Bb5 {[%emt 0:0:8]} Nd8 {[%emt 0:0:7]} 71. Bc4 {[%emt 0:0:3]} Nb7 {[%emt 0:0:2]} 72. Ba6 {[%emt 0:0:14]} Nd6 {[%emt 0:0:2]} 73. Bd3 {[%emt 0:0:1]
} Kd5 {[%emt 0:0:3]} 74. Bh7 {[%emt 0:0:20]} Ke5 {[%emt 0:0:0]} 75. Bd3 {[%emt 0:0:2]} Nf7 {[%emt 0:0:3]} 76. Ba6 {[%emt 0:0:32]} Ng5 {[%emt 0:0:24]} 77. Bb7 {[%emt 0:0:16]} Ne6 {[%emt 0:0:3]} 78. Ba6 {[%emt 0:0:4]
} Nd4 {[%emt 0:0:13]} 79. Bc4 {[%emt 0:0:1]} Nc2+ {[%emt 0:0:0]} 80. Kd3 {[%emt 0:0:1]} Ne1+ {[%emt 0:0:11]} 81. Ke3 {[%emt 0:0:13]} Ng2+ {[%emt 0:0:1]} 82. Kf3 {[%emt 0:0:2]} Nf4 {[%emt 0:0:9]} 83. Ke3 {[%emt 0:0:2]
} Nh3 {[%emt 0:0:6]} 84. Bf1 {[%emt 0:0:3]} Ng5 {[%emt 0:0:0]} 85. Bc4 {[%emt 0:0:2]} Ne4 {[%emt 0:0:4]} 86. Be2 {[%emt 0:0:22]} Nd6 {[%emt 0:0:5]} 87. Bd3 {[%emt 0:0:3]} Nf7 {[%emt 0:0:10] Ke4+} 1/2-1/2